bitfinex/quotes_SOLUSD_20240906
["timestamp","ask_amount","ask_price","bid_price","bid_amount"]
[1725591988206,16.641,131.5,131.43,26.6299]
[1725591988411,45.0,131.49,131.44,5.60819214]
[1725591988611,7.6058,131.48,131.43,26.6299]
[1725591988813,7.6058,131.48,131.44,5.60864104]
[1725591989020,7.6058,131.48,131.43,26.6299]
[1725591989223,7.6058,131.48,131.44,5.60901314]
[1725591989441,7.6058,131.48,131.43,26.6299]
[1725591989731,7.6058,131.48,131.44,5.60907795]
[1725591989925,7.6058,131.48,131.43,26.6299]
[1725591990236,7.6058,131.48,131.44,5.6091083]
[1725591990421,7.6058,131.48,131.43,26.6299]
[1725591990614,7.6058,131.48,131.44,5.60911777]
[1725591990812,7.6058,131.48,131.43,26.6299]
[1725591991343,7.6058,131.48,131.44,5.60909155]
[1725591991514,7.6058,131.48,131.43,26.6299]
[1725591991715,7.6058,131.48,131.44,5.60923381]
[1725591992016,7.6058,131.48,131.43,26.6299]
[1725591992315,7.6058,131.48,131.44,5.60994333]
[1725591992634,7.6058,131.48,131.43,26.6299]
[1725591992834,7.6058,131.48,131.44,5.61058199]
[1725591993010,7.6058,131.48,131.43,26.6299]
[1725591993210,7.6058,131.48,131.44,5.61087506]
[1725591993419,7.6058,131.48,131.43,26.6299]
[1725591993834,7.6058,131.48,131.44,5.61019798]
[1725591994128,7.6058,131.48,131.43,26.6299]
[1725591994316,7.6058,131.48,131.44,5.61039635]
[1725591994515,7.6058,131.48,131.43,26.6299]
[1725591994713,7.6058,131.48,131.44,5.6100894]
[1725591994936,7.6058,131.48,131.43,26.6299]
[1725591995111,7.6058,131.48,131.44,5.60991617]
[1725591995309,7.6058,131.48,131.43,26.6299]
[1725591995529,7.6058,131.48,131.44,5.60981348]
[1725591995730,7.6058,131.48,131.43,26.6299]
[1725591995932,7.6058,131.48,131.44,5.60999388]
[1725591996143,7.6058,131.48,131.43,26.6299]
[1725591996327,7.6058,131.48,131.44,5.60999388]
[1725591996519,7.6058,131.48,131.43,26.6299]
[1725591996722,7.6058,131.48,131.44,14.73943047]
[1725591996914,16.641,131.5,131.45,19.0182]
[1725591997135,16.641,131.5,131.46,7.6063]
[1725591998139,16.641,131.5,131.47,7.6062]
[1725592000832,7.6028,131.53,131.48,9.1260508]
[1725592001023,7.6028,131.53,131.49,1.52075723]
[1725592002239,7.6028,131.53,131.49,9.12555723]
[1725592002430,7.6028,131.53,131.49,7.6048]
[1725592003521,15.1153,131.58,131.51,19.0093]
[1725592003723,15.1153,131.58,131.55,7.6012]
[1725592003941,15.1153,131.58,131.56,1.51994812]
[1725592004135,15.1153,131.58,131.55,7.6012]
[1725592004343,15.1153,131.58,131.53,26.6083]
[1725592004539,15.1153,131.58,131.54,8.35387426]
[1725592004931,15.1153,131.58,131.54,7.6021]
[1725592005849,15.1153,131.64,131.57,7.6004]
[1725592006058,7.5983,131.61,131.57,7.6004]
[1725592007330,7.5983,131.61,131.58,1.51983237]
[1725592009427,7.5977,131.62,131.58,1.51983237]
[1725592009847,7.5982,131.61,131.57,1.51983018]
[1725592010054,7.5988,131.6,131.56,7.6009]
[1725592010253,45.0,131.59,131.52,24.60040226]
[1725592010457,7.6001,131.58,131.53,7.6023]
[1725592011556,7.6001,131.58,131.54,7.602]
[1725592015445,66.619,131.59,131.52,19.0082]
[1725592015945,7.6015,131.56,131.52,19.0082]
[1725592020364,7.6015,131.56,131.52,28.13200697]
[1725592021261,7.6006,131.57,131.52,28.13200697]
[1725592021453,7.6006,131.57,131.52,26.6115]
[1725592022556,7.6011,131.56,131.52,26.6115]
[1725592024241,66.619,131.59,131.53,7.6024]
[1725592024582,15.9699,131.62,131.54,11.34781016]
[1725592024741,15.9699,131.62,131.58,26.5989]
[1725592032467,7.5986,131.61,131.56,7.6005]
[1725592032657,15.9699,131.62,131.55,26.6047]
[1725592032971,7.5995,131.59,131.55,19.0032]
[1725592033168,7.6,131.58,131.53,7.6027]
[1725592033351,7.6,131.58,131.54,7.6021]
[1725592037070,7.5995,131.59,131.55,9.12177046]
[1725592042352,14.0073,131.6,131.55,1.52017046]
[1725592042558,14.0073,131.6,131.54,19.0051]
[1725592042863,14.0073,131.6,131.55,7.6014]
[1725592042864,7.5995,131.59,131.55,7.6014]
[1725592043852,7.5995,131.59,131.56,1.52006889]
[1725592044054,14.0072,131.6,131.56,9.12086889]
[1725592044580,14.0072,131.6,131.56,7.6008]
[1725592044881,7.5988,131.6,131.56,7.6008]
[1725592047157,7.5988,131.6,131.55,7.6015]
[1725592048172,7.5994,131.59,131.55,7.6015]
[1725592049880,7.5992,131.6,131.55,9.12160313]
[1725592050062,7.5992,131.6,131.56,7.601]
[1725592050261,7.5992,131.6,131.57,1.51986961]
[1725592051379,7.5992,131.6,131.56,7.601]
[1725592054174,7.5992,131.6,131.57,1.51991699]
[1725592054371,7.5992,131.6,131.57,1.51990807]
[1725592054791,7.5992,131.6,131.56,7.601]
[1725592057868,7.5992,131.6,131.57,1.51988601]
[1725592060277,7.5992,131.6,131.56,7.601]
[1725592065385,7.5992,131.6,131.57,1.51990897]
[1725592069991,7.5992,131.6,131.56,7.601]
[1725592072973,7.5992,131.6,131.57,1.5199115]
[1725592073974,15.9699,131.62,131.56,19.0023]
[1725592074176,15.9699,131.62,131.58,1.0377181]
[1725592074698,15.9699,131.62,131.56,19.0023]
[1725592074903,15.9699,131.62,131.57,5.57721968]
[1725592075109,15.9699,131.62,131.58,5.57721968]
[1725592075403,23.5677,131.62,131.59,1.5196447]
[1725592075702,23.5677,131.62,131.58,7.5995]
[1725592080093,7.5982,131.61,131.57,7.6003]
[1725592081214,15.9699,131.62,131.53,34.24545464]
[1725592081381,7.6018,131.55,131.54,5.57799172]
[1725592081580,7.6018,131.55,131.5,22.84355464]
[1725592081798,18.9986,131.59,131.51,35.63835691]
[1725592081996,7.6005,131.57,131.52,15.10868591]
[1725592082304,7.6005,131.57,131.53,5.58151317]
[1725592082511,7.6005,131.57,131.51,19.0092]
[1725592082693,7.6005,131.57,131.52,15.09220259]
[1725592082894,7.6005,131.57,131.53,5.56574594]
[1725592083206,7.6005,131.57,131.51,19.0092]
[1725592083389,7.6005,131.57,131.53,7.6027]
[1725592084006,15.2746,131.55,131.49,22.8478673]
[1725592084209,7.6029,131.53,131.49,7.605]
[1725592084507,6.5446,131.54,131.49,7.605]
[1725592084808,45.0,131.53,131.49,7.605]
[1725592085904,14.1471,131.54,131.49,7.605]
[1725592088106,7.6028,131.53,131.49,7.605]
[1725592088316,52.6036,131.52,131.48,19.0135]
[1725592089313,15.2746,131.51,131.45,19.0182]
[1725592089507,6.5446,131.49,131.4,22.2925]
[1725592089686,6.5446,131.49,131.41,5.57744827]
[1725592089894,45.0,131.48,131.42,5.57744827]
[1725592090096,45.0,131.48,131.41,5.57788588]
[1725592090312,52.6057,131.48,131.43,7.6084]
[1725592092307,52.6057,131.48,131.44,7.608]
[1725592095918,52.6057,131.48,131.42,19.0225]
[1725592095919,7.6065,131.47,131.42,19.0225]
[1725592096099,22.8815,131.46,131.42,19.0225]
[1725592097413,7.6075,131.45,131.42,19.0225]
[1725592097994,7.6093,131.42,131.38,7.6113]
[1725592098307,64.015,131.48,131.33,7.6143]
[1725592098308,7.6116,131.38,131.33,7.6143]
[1725592098515,7.611,131.39,131.34,7.6137]
[1725592099406,45.0,131.38,131.34,7.6137]
[1725592100116,7.611,131.39,131.34,7.6137]
[1725592101415,7.611,131.39,131.34,9.13614432]
[1725592101601,2.8807065,131.4,131.33,26.6497]
[1725592101921,45.0,131.4,131.33,26.6497]
[1725592102515,7.6115,131.38,131.33,26.6497]
[1725592102908,7.6115,131.38,131.34,7.6137]
[1725592103531,7.6122,131.37,131.33,19.0354]
[1725592104821,7.6122,131.37,131.33,26.6498]
[1725592104998,7.6115,131.38,131.33,26.6498]
[1725592105194,45.0,131.37,131.33,26.6498]
[1725592105817,7.6109,131.4,131.34,1.52255892]
[1725592106119,52.6109,131.39,131.33,19.0354]
[1725592106323,7.6109,131.39,131.34,1.52258433]
[1725592106627,7.6109,131.39,131.33,19.0354]
[1725592107139,7.6109,131.39,131.34,1.52250374]
[1725592107333,7.6109,131.39,131.34,9.13620374]
[1725592107500,7.6104,131.4,131.35,7.6131]
[1725592107819,25.84849977,131.41,131.36,9.1344661]
[1725592108615,25.84849977,131.41,131.36,7.6121]
[1725592109017,45.0,131.4,131.36,7.6121]
[1725592111138,52.6103,131.4,131.36,7.6121]
[1725592112605,52.6103,131.4,131.35,26.6453]
[1725592112901,45.0,131.4,131.3,38.0788]
[1725592113236,52.6104,131.4,131.35,7.6131]
[1725592114524,25.84839977,131.41,131.36,7.6125]
[1725592114921,15.2746,131.41,131.37,7.6118]
[1725592119731,22.8844,131.41,131.37,7.6118]
[1725592122328,22.8844,131.41,131.36,26.6436]
[1725592123212,7.6104,131.4,131.36,26.6436]
[1725592123413,7.6104,131.4,131.36,19.031]
[1725592124643,7.6111,131.39,131.35,7.6132]
[1725592126931,7.6104,131.4,131.35,7.6132]
[1725592129130,7.6114,131.39,131.34,7.6136]
[1725592129673,7.6114,131.39,131.35,7.6131]
[1725592133054,7.6114,131.39,131.34,7.6136]
[1725592133837,7.6115,131.38,131.34,7.6136]
[1725592134265,52.6122,131.37,131.33,19.035]
[1725592135358,13.929,131.38,131.33,26.6493]
[1725592136265,13.929,131.38,131.34,1.5225916]
[1725592136564,13.929,131.38,131.33,26.6493]
[1725592139155,7.6109,131.39,131.34,7.6133]
[1725592140145,7.6115,131.38,131.34,7.6133]
[1725592142648,7.611,131.39,131.34,7.6133]
[1725592145267,7.611,131.39,131.35,7.6131]
[1725592145467,2.97840462,131.4,131.36,7.6122]
[1725592145765,7.6092,131.42,131.37,7.6115]
[1725592146062,22.0458,131.44,131.36,7.6125]
[1725592146063,7.6098,131.41,131.36,7.6125]
[1725592146763,7.6103,131.4,131.36,7.6125]
[1725592157263,7.6103,131.4,131.35,26.645]
[1725592158377,22.0458,131.44,131.35,19.0319]
[1725592158378,7.611,131.39,131.35,19.0319]
[1725592159452,7.611,131.39,131.34,7.6136]
[1725592169777,7.6092,131.42,131.37,7.6117]
[1725592173393,22.0458,131.44,131.37,7.6117]
[1725592173394,7.6098,131.41,131.37,7.6117]
[1725592175661,22.0458,131.44,131.37,7.6117]
[1725592175967,45.0,131.43,131.37,7.6117]
[1725592177389,7.6099,131.41,131.37,7.6117]
[1725592182903,7.6093,131.42,131.38,7.6113]
[1725592183194,7.6087,131.43,131.38,7.6113]
[1725592184596,15.7284,131.44,131.38,19.0282]
[1725592184597,7.6081,131.44,131.38,19.0282]
[1725592184781,7.6058,131.48,131.43,7.6084]
[1725592184986,7.6058,131.48,131.43,7.6085]
[1725592185679,7.6058,131.48,131.44,19.0187]
[1725592185882,7.6058,131.48,131.43,7.6085]
[1725592187893,22.1124,131.5,131.41,19.0235]
[1725592188099,7.6063,131.47,131.42,7.6087]
[1725592189096,7.6063,131.47,131.43,7.6086]
[1725592192983,23.5503,131.5,131.45,7.6069]
[1725592194704,7.605,131.5,131.45,7.6069]
[1725592195486,7.6051,131.49,131.45,7.6069]
[1725592196305,7.6057,131.48,131.44,7.608]
[1725592196683,7.6057,131.48,131.43,49.283]
[1725592200588,7.6057,131.48,131.44,7.608]
[1725592200904,7.6044,131.51,131.45,19.0179]
[1725592201115,7.6016,131.55,131.5,7.6041]
[1725592201319,24.1415,131.56,131.51,7.6038]
[1725592201830,7.6005,131.57,131.52,7.6032]
[1725592202600,7.6,131.58,131.53,7.6027]
[1725592202894,7.6,131.58,131.52,19.0071]
[1725592203415,16.5403,131.59,131.52,19.0071]
[1725592203416,24.1397,131.59,131.52,19.0071]
[1725592203800,7.5999,131.58,131.52,19.0071]
[1725592205394,7.5999,131.58,131.53,7.6027]
[1725592208314,16.5403,131.59,131.49,410.2122]
[1725592208485,7.6012,131.56,131.51,7.6034]
[1725592209412,7.6023,131.54,131.49,417.8172]
[1725592211715,7.603,131.53,131.49,410.2122]
[1725592212230,7.603,131.53,131.49,19.0122]
[1725592216924,7.6034,131.52,131.48,7.6056]
[1725592217898,7.6029,131.53,131.48,7.6056]
[1725592219535,7.6023,131.54,131.49,7.6048]
[1725592219702,7.6018,131.55,131.51,7.6039]
[1725592220622,7.6023,131.54,131.5,7.6043]
[1725592220922,7.6023,131.54,131.49,7.605]
[1725592221100,7.6029,131.53,131.48,26.619]
[1725592223098,19.51359949,131.59,131.45,412.7009]
[1725592223099,16.6292,131.55,131.47,7.6061]
[1725592223418,45.0,131.54,131.47,7.6061]
[1725592224427,7.604,131.51,131.47,7.6061]
[1725592224632,7.6035,131.52,131.48,7.6056]
[1725592225933,7.6035,131.52,131.47,7.6061]
[1725592227133,7.6042,131.51,131.47,7.6061]
[1725592227435,7.6042,131.51,131.46,7.6067]
[1725592228222,7.6042,131.51,131.47,7.6062]
[1725592240853,23.0659,131.55,131.45,70.89448667]
[1725592241156,23.0659,131.55,131.49,19.0122]
[1725592241366,7.6023,131.54,131.5,7.6043]
[1725592242859,30.6677,131.55,131.5,7.6043]
[1725592244737,16.6292,131.55,131.51,7.6039]
[1725592245865,16.6292,131.55,131.52,7.6033]
[1725592246530,16.6292,131.55,131.51,26.613]
[1725592250865,24.231,131.55,131.51,26.613]
[1725592251562,24.231,131.55,131.51,19.0092]
[1725592251771,7.6023,131.54,131.51,19.0092]
[1725592254446,24.2309,131.55,131.51,19.0092]
[1725592261897,7.6027,131.54,131.49,7.6051]
[1725592262181,22.7681,131.55,131.48,26.6184]
[1725592263055,7.603,131.53,131.48,26.6184]
[1725592263685,21.8193,131.58,131.49,11.35888667]
[1725592263984,23.2804,131.58,131.54,26.6071]
[1725592264766,7.5989,131.6,131.55,7.6016]
[1725592265075,15.6804,131.61,131.57,7.6004]
[1725592265485,15.6804,131.61,131.58,7.5997]
[1725592265966,7.5977,131.62,131.58,7.5997]
[1725592266283,21.8193,131.64,131.55,402.55888667]
[1725592266486,2.95736574,131.67,131.55,402.55888667]
[1725592266487,6.1389,131.67,131.59,11.35888667]
[1725592266794,15.6804,131.68,131.64,7.5964]
[1725592267164,15.6804,131.68,131.62,18.9929]
[1725592267165,23.2748,131.68,131.63,7.597]
[1725592267766,23.2748,131.68,131.62,26.5904]
[1725592268686,23.2748,131.68,131.62,18.9929]
[1725592268687,15.6804,131.68,131.62,18.9929]
[1725592268874,7.5948,131.67,131.62,26.5904]
[1725592269472,15.6804,131.68,131.62,18.9929]
[1725592269675,7.5958,131.66,131.59,410.1983]
[1725592269888,45.0,131.67,131.59,18.9983]
[1725592270271,7.5964,131.64,131.59,26.5976]
[1725592270603,7.5971,131.63,131.59,18.9983]
[1725592271075,6.1389,131.64,131.56,410.2022]
[1725592271283,7.5984,131.61,131.56,410.2022]
[1725592271472,7.5984,131.61,131.56,19.0022]
[1725592271671,23.2788,131.61,131.56,19.0022]
[1725592271973,7.5989,131.6,131.56,19.0022]
[1725592272317,23.2786,131.61,131.56,26.6032]
[1725592277391,15.6804,131.61,131.53,416.3602]
[1725592277704,7.6,131.58,131.53,26.6092]
[1725592277912,7.6,131.58,131.53,19.0069]
[1725592278093,7.6,131.58,131.54,7.6021]
[1725592278405,7.6,131.58,131.54,9.12231046]
[1725592280109,7.5994,131.59,131.54,9.12231046]
[1725592280290,7.5994,131.59,131.54,7.6021]
[1725592284314,7.5994,131.59,131.55,1.03282787]
[1725592285197,7.5994,131.59,131.55,8.63442787]
[1725592285396,7.5994,131.59,131.55,7.6016]
[1725592294199,23.2788,131.61,131.57,7.6004]
[1725592296212,23.2788,131.61,131.56,9.1188818]
[1725592296428,41.3074,131.64,131.57,7.6001]
[1725592296619,22.6344,131.67,131.56,56.02228667]
[1725592296929,22.6344,131.67,131.58,11.35888667]
[1725592297501,22.6344,131.67,131.57,45.0]
[1725592297727,22.6344,131.67,131.58,20.0]
[1725592298529,30.2292,131.67,131.61,18.9948]
[1725592299412,30.2292,131.67,131.62,7.5975]
[1725592300825,22.6344,131.67,131.63,7.5968]
[1725592301131,16.1765,131.67,131.64,7.5964]
[1725592303823,23.7714,131.67,131.61,18.9948]
[1725592304130,7.5955,131.66,131.62,7.5974]
[1725592304921,7.5955,131.66,131.61,26.5929]
[1725592307835,52.5959,131.65,131.61,18.9948]
[1725592308025,7.5966,131.64,131.6,7.5986]
[1725592316135,52.5959,131.65,131.61,7.5981]
[1725592317754,16.1765,131.67,131.62,7.5974]
[1725592319443,7.5953,131.66,131.62,7.5974]
[1725592320154,6.1533,131.65,131.6,18.996]
[1725592320357,45.0,131.64,131.57,19.0009]
[1725592320528,45.0,131.64,131.57,7.6003]
[1725592320529,7.5976,131.62,131.57,7.6003]
[1725592320729,22.79,131.63,131.58,7.5996]
[1725592320953,15.1929,131.63,131.59,7.5992]
[1725592325147,6.1533,131.65,131.6,18.9963]
[1725592325462,15.1929,131.66,131.64,26.5866]
[1725592330964,15.1929,131.66,131.64,18.9903]
[1725592334240,6.1533,131.68,131.64,26.5866]
[1725592334444,22.7866,131.69,131.66,26.5827]
[1725592334445,15.1929,131.69,131.66,26.5827]
[1725592345175,7.5931,131.7,131.66,26.5827]
[1725592345682,0.8472274,131.72,131.71,7.5924]
[1725592346472,0.8472274,131.72,131.7,26.5741]
[1725592347577,0.8472274,131.72,131.71,7.5924]
[1725592348676,0.8472274,131.72,131.7,26.574]
[1725592349466,0.8472274,131.72,131.67,18.9859]
[1725592349771,0.8472274,131.72,131.68,7.594]
[1725592350275,0.8472274,131.72,131.66,391.2]
[1725592350578,7.593,131.7,131.66,391.2]
[1725592350879,7.593,131.7,131.66,7.5952]
[1725592358371,7.593,131.7,131.65,7.5957]
[1725592358793,7.5936,131.69,131.64,26.5868]
[1725592358989,7.5943,131.68,131.64,18.9906]
[1725592359293,7.5943,131.68,131.64,26.587]
[1725592360225,7.5937,131.69,131.65,7.5958]
[1725592361097,7.5937,131.69,131.64,18.9906]
[1725592361098,7.5937,131.69,131.64,26.5869]
[1725592361598,7.5949,131.67,131.63,7.597]
[1725592363199,7.5976,131.63,131.61,391.2]
[1725592363389,60.8523,131.66,131.59,7.5991]
[1725592363592,7.5966,131.64,131.59,7.5991]
[1725592364187,7.5966,131.64,131.59,7.5992]
[1725592364188,7.5965,131.64,131.59,7.5992]
[1725592365179,7.5975,131.63,131.58,18.9989]
[1725592365404,60.8523,131.66,131.58,26.5986]
[1725592365807,7.5982,131.61,131.56,7.601]
[1725592365980,79.8415,131.66,131.55,448.2097]
[1725592365981,7.5977,131.62,131.57,7.6004]
[1725592367311,7.5977,131.62,131.58,7.5998]
[1725592368311,7.597,131.64,131.58,7.5998]
[1725592368917,7.5971,131.63,131.58,7.5998]
[1725592370598,7.5977,131.62,131.58,7.5998]
[1725592376413,7.597,131.63,131.59,7.5993]
[1725592378890,7.597,131.63,131.58,7.5998]
[1725592380310,7.597,131.63,131.59,7.599]
[1725592380714,7.5966,131.64,131.59,7.599]
[1725592382400,7.5971,131.63,131.59,7.599]
[1725592383691,23.4477,131.66,131.55,43.57448352]
[1725592383896,15.8523,131.66,131.59,15.3914]
[1725592384416,15.8523,131.66,131.63,26.5887]
[1725592384620,15.8523,131.66,131.64,7.5963]
[1725592384825,7.5937,131.69,131.65,7.5956]
[1725592386424,7.5937,131.69,131.63,18.9919]
[1725592386425,7.5937,131.69,131.64,7.5963]
[1725592390132,15.4948,131.7,131.63,26.5888]
[1725592390323,7.5954,131.66,131.62,7.5974]
[1725592392010,7.5948,131.67,131.63,7.597]
[1725592392334,7.5954,131.66,131.62,7.5974]
[1725592392910,7.5948,131.67,131.62,7.5974]
[1725592396129,7.5955,131.66,131.62,7.5974]
[1725592397830,7.5962,131.65,131.61,7.598]
[1725592398012,7.5954,131.66,131.61,7.598]
[1725592398831,7.5954,131.66,131.62,7.5975]
[1725592399828,7.5948,131.67,131.63,7.5969]
[1725592401923,7.5943,131.68,131.63,7.5969]
[1725592403409,34.4778,131.7,131.62,18.9934]
[1725592403618,7.5953,131.66,131.62,26.5909]
[1725592407639,7.5949,131.67,131.62,26.5909]
[1725592410525,7.5953,131.66,131.62,26.5909]
[1725592411010,7.5946,131.68,131.63,7.5966]
[1725592411219,15.4948,131.7,131.64,18.9907]
[1725592412538,7.5938,131.69,131.65,7.5958]
[1725592417116,15.4948,131.7,131.65,7.5958]
[1725592417314,7.5926,131.71,131.67,7.5946]
[1725592417622,0.8472274,131.72,131.7,7.5928]
[1725592418129,0.8472274,131.72,131.69,7.5934]
[1725592419239,0.8472274,131.72,131.7,7.5928]
[1725592420836,0.8472274,131.72,131.69,7.5934]
[1725592427731,0.8472274,131.72,131.7,7.5925]
[1725592427932,0.8472274,131.72,131.71,7.5924]
[1725592429353,0.8472274,131.72,131.71,9.11038203]
[1725592429853,0.8472274,131.72,131.71,7.5924]
[1725592430458,0.8472274,131.72,131.71,398.7924]
[1725592430748,0.8472274,131.72,131.71,463.7924]
[1725592435264,0.8472274,131.72,131.71,418.7924]
[1725592437146,0.8472274,131.72,131.71,463.7924]
[1725592438658,0.8472274,131.72,131.71,418.7924]
[1725592440559,0.8472274,131.72,131.71,398.7924]
[1725592441058,0.8472274,131.72,131.71,391.2]
[1725592445867,0.8472274,131.72,131.71,398.7924]
[1725592461273,0.8472274,131.72,131.71,391.2]
[1725592466276,0.8472274,131.72,131.71,398.7924]
[1725592475588,0.8472274,131.72,131.71,404.34799541]
[1725592476584,0.8472274,131.72,131.71,13.14799541]
[1725592476980,0.8472274,131.72,131.71,84.44519541]
[1725592477277,0.8472274,131.72,131.71,78.8896]
[1725592477495,0.8472274,131.72,131.71,84.44367305]
[1725592477891,0.8472274,131.72,131.71,78.8896]
[1725592478278,0.8472274,131.72,131.71,84.44330612]
[1725592479110,0.8472274,131.72,131.71,39.44330612]
[1725592480716,0.8472274,131.72,131.71,33.8896]
[1725592480895,0.8472274,131.72,131.71,39.4445202]
[1725592482530,0.8472274,131.72,131.71,430.6445202]
[1725592484413,0.8472274,131.72,131.71,425.0896]
[1725592484614,0.8472274,131.72,131.71,430.64409226]
[1725592484910,0.8472274,131.72,131.71,475.64409226]
[1725592486889,2.74e-05,131.72,131.71,475.64409226]
[1725592487516,2.74e-05,131.72,131.71,475.6392029]
[1725592490799,2.74e-05,131.72,131.71,475.6389946]
[1725592491998,0.2,131.84,131.71,475.6389946]
[1725592491999,21.5727,131.84,131.75,37.9488]
[1725592492300,21.5727,131.84,131.81,7.5861]
[1725592494811,21.5727,131.84,131.8,26.5548]
[1725592496441,29.1576,131.84,131.8,26.5548]
[1725592496810,21.5727,131.84,131.81,7.5866]
[1725592498731,15.5588,131.84,131.83,7.5855]
[1725592499319,0.2,131.84,131.83,7.5855]
[1725592501235,0.2,131.84,131.83,54.10082165]
[1725592501644,0.2,131.84,131.83,52.5855]
[1725592501934,0.2,131.84,131.82,26.5505]
[1725592502818,0.2,131.84,131.83,7.5855]
[1725592503241,0.2,131.84,131.82,26.5505]
[1725592503834,0.2,131.84,131.83,7.5855]
[1725592507314,0.2,131.84,131.82,18.9646]
[1725592507516,0.2,131.84,131.82,26.5505]
[1725592507726,0.2,131.84,131.83,7.5855]
[1725592508547,0.2,131.84,131.82,26.5505]
[1725592509236,0.2,131.84,131.83,7.5855]
[1725592513441,0.2,131.84,131.82,26.5505]
[1725592515829,0.2,131.84,131.83,7.5855]
[1725592516325,0.2,131.84,131.79,18.9688]
[1725592516532,7.785,131.84,131.79,26.5565]
[1725592517141,7.5866,131.82,131.76,18.9729]
[1725592517439,15.0608,131.81,131.78,7.5883]
[1725592518940,15.0608,131.81,131.75,429.1487726]
[1725592519146,15.0608,131.81,131.79,7.5876]
[1725592519333,15.0608,131.81,131.78,26.5586]
[1725592519937,15.0608,131.81,131.79,7.5876]
[1725592520124,15.2608,131.84,131.8,18.9675]
[1725592520427,15.2608,131.84,131.81,7.5865]
[1725592521439,15.2608,131.84,131.8,26.5546]
[1725592522150,15.2608,131.84,131.81,7.5865]
[1725592526550,15.2608,131.84,131.82,7.586]
[1725592537269,15.2608,131.84,131.83,7.5855]
[1725592537270,0.2,131.84,131.83,7.5855]
[1725592538068,0.2,131.84,131.82,26.5505]
[1725592538758,0.2,131.84,131.83,7.5855]
[1725592541368,0.2,131.84,131.79,18.9686]
[1725592541566,0.2,131.84,131.8,7.5868]
[1725592544098,0.2,131.84,131.81,7.5866]
[1725592544593,0.2,131.84,131.82,7.586]
[1725592544793,0.2,131.84,131.81,26.5522]
[1725592545787,7.785,131.84,131.81,18.9657]
[1725592550685,0.2,131.84,131.81,18.9657]
[1725592553002,0.2,131.84,131.82,7.586]
[1725592553476,0.2,131.84,131.81,26.5522]
[1725592556504,0.2,131.84,131.78,18.9703]
[1725592556505,15.3771,131.83,131.78,18.9703]
[1725592556682,7.5862,131.82,131.79,5.53707765]
[1725592557002,22.9626,131.83,131.79,7.5878]
[1725592557307,15.3771,131.83,131.79,7.5878]
[1725592557621,22.9627,131.83,131.79,7.5878]
[1725592558104,15.3771,131.83,131.8,7.5871]
[1725592558486,15.3771,131.83,131.81,7.5866]
[1725592558822,0.2,131.84,131.81,18.966]
[1725592559112,0.2,131.84,131.83,7.5855]
[1725592559308,0.2,131.84,131.82,7.5859]
[1725592561518,0.2,131.84,131.81,26.5525]
[1725592562503,6.3316,131.83,131.78,29.09851609]
[1725592562703,6.3316,131.83,131.78,21.51021609]
[1725592562910,67.9636,131.82,131.78,21.51021609]
[1725592565211,67.9636,131.82,131.78,18.9705]
[1725592565912,7.5874,131.8,131.75,26.5639]
[1725592566208,7.5874,131.8,131.76,7.5895]
[1725592566404,7.5874,131.8,131.75,26.5644]
[1725592566810,7.5874,131.8,131.76,7.5895]
[1725592569410,7.5874,131.8,131.75,26.5644]
[1725592569602,7.5878,131.79,131.75,26.5644]
[1725592572418,7.5884,131.78,131.75,18.9744]
[1725592572712,7.5884,131.78,131.72,18.9789]
[1725592572713,21.7087,131.78,131.72,18.9789]